bitfinex/quotes_ETHUSD_20241130
["timestamp","ask_amount","ask_price","bid_price","bid_amount"]
[1732965967366,2.09547837,3664.2,3663.4,0.05385994]
[1732965967570,2.72948,3663.7,3663.4,0.05385994]
[1732965967751,0.55,3663.7,3663.1,2.72991]
[1732965967950,0.80366929,3663.7,3663.1,2.72991]
[1732965968161,0.80366929,3663.7,3662.9,4.31006]
[1732965968365,0.55,3663.5,3662.9,4.31006]
[1732965968889,3.27954,3663.7,3663.0,2.72998]
[1732965969198,0.55,3663.5,3663.0,2.72998]
[1732965969749,0.55,3663.5,3662.9,1.58]
[1732965970179,0.25366644,3663.4,3662.9,4.31006]
[1732965970390,0.55,3663.5,3662.9,4.31006]
[1732965970563,4.82487837,3663.8,3662.9,4.31006]
[1732965970564,0.55,3663.3,3662.9,4.31006]
[1732965971098,2.72963,3663.5,3662.9,4.31006]
[1732965971099,0.80368792,3663.4,3662.9,4.31006]
[1732965971296,0.55,3663.4,3663.1,2.72989]
[1732965971448,0.55,3663.5,3663.3,2.72977]
[1732965971653,0.55,3663.5,3663.1,2.72988]
[1732965971897,0.55,3663.6,3663.1,2.72988]
[1732965972093,0.80371985,3663.6,3663.2,2.72983]
[1732965972300,0.55,3663.7,3662.9,1.58]
[1732965972504,0.55,3663.9,3663.3,2.72977]
[1732965972648,0.55,3663.7,3663.4,2.72966]
[1732965973088,0.55,3663.7,3663.5,2.72961]
[1732965973269,0.55,3663.9,3663.5,4.38681]
[1732965973596,0.55,3663.7,3663.6,2.72955]
[1732965973785,0.55,3663.9,3663.6,2.72955]
[1732965974805,0.80371985,3663.9,3663.5,1.6572]
[1732965974984,0.55,3663.9,3663.5,4.38682]
[1732965975299,0.55,3663.9,3663.5,1.6572]
[1732965975506,0.80371985,3663.9,3663.2,1.6572]
[1732965975712,3.27935,3663.9,3663.2,1.6572]
[1732965975931,0.25371985,3663.8,3663.2,1.6572]
[1732965976085,3.27935,3663.9,3663.3,0.05371582]
[1732965976280,0.55,3663.7,3663.3,0.05371582]
[1732965976797,0.55,3663.7,3662.1,0.55121573]
[1732965976798,0.55,3663.4,3662.9,2.73007]
[1732965977136,0.55,3663.5,3662.9,2.73007]
[1732965977270,0.80371442,3663.5,3662.9,2.73007]
[1732965977618,0.55,3663.5,3663.0,2.72999]
[1732965977762,0.55,3663.6,3663.0,2.72999]
[1732965977963,0.80371905,3663.6,3663.0,2.72999]
[1732965978577,3.27962,3663.6,3662.8,2.73011]
[1732965978786,0.55,3663.4,3662.8,2.73011]
[1732965978975,0.55,3663.4,3662.7,1.5591]
[1732965979178,0.55,3663.4,3662.9,2.73006]
[1732965979780,0.55,3663.4,3662.7,4.28932]
[1732965980068,0.55,3663.4,3663.0,2.73]
[1732965980269,0.55,3663.7,3662.7,2.01532824]
[1732965980499,0.55,3663.8,3663.5,2.72958]
[1732965980699,0.55,3664.0,3663.5,2.72958]
[1732965981118,0.55,3664.0,3663.6,2.72954]
[1732965981283,0.80371905,3664.0,3663.6,2.72954]
[1732965981487,0.55,3664.0,3663.6,2.72954]
[1732965981711,0.80371905,3664.0,3663.7,0.05364377]
[1732965981911,0.55,3664.0,3663.7,0.05364377]
[1732965982414,0.80371905,3664.0,3663.7,0.05364377]
[1732965982718,0.55,3664.0,3663.7,0.05364377]
[1732965982885,0.80371905,3664.0,3663.7,0.05364377]
[1732965983068,0.55,3664.0,3663.7,0.05364377]
[1732965983295,0.25403768,3663.9,3663.7,0.05364377]
[1732965983499,0.55,3663.8,3663.7,0.05364377]
[1732965983910,0.55,3664.0,3663.7,0.05364377]
[1732965984139,0.55,3663.8,3663.7,0.05364377]
[1732965984641,0.55,3664.0,3663.7,0.05364377]
[1732965984848,0.55,3663.8,3663.7,0.05364377]
[1732965985013,0.25413005,3663.9,3663.7,0.05364377]
[1732965985193,0.55,3663.8,3663.7,0.05364377]
[1732965985398,0.80423271,3663.8,3663.7,0.05364377]
[1732965985830,0.80423271,3663.8,3663.6,2.72954]
[1732965986143,0.55,3664.1,3663.7,0.05355824]
[1732965986353,0.25438774,3664.0,3663.9,2.72928]
[1732965986562,0.2852833,3664.3,3664.1,2.72915]
[1732965986701,1.73991016,3664.8,3664.1,2.72915]
[1732965986702,0.25441847,3664.2,3664.1,2.72915]
[1732965986897,2.72877,3664.7,3664.1,2.72915]
[1732965986898,0.40660808,3664.6,3664.1,2.72915]
[1732965987103,0.2544233,3664.5,3664.2,2.72907]
[1732965987319,0.2544233,3664.4,3664.2,2.72907]
[1732965987523,0.2544233,3664.3,3664.2,2.72907]
[1732965987817,0.8044233,3664.3,3664.2,2.72907]
[1732965988002,0.55,3664.3,3664.2,2.72907]
[1732965988405,0.55,3664.7,3664.2,2.72907]
[1732965988610,0.55,3664.3,3664.2,2.72907]
[1732965989041,0.55,3664.3,3664.0,4.28832]
[1732965989042,0.55,3664.2,3664.0,4.28832]
[1732965989238,0.55,3664.2,3664.1,2.72918]
[1732965989675,0.80460895,3664.2,3664.1,2.72918]
[1732965989860,0.17065885,3665.0,3664.0,1.5591]
[1732965989861,0.95719959,3664.5,3664.2,2.72909]
[1732965990171,0.55,3664.5,3664.4,2.72895]
[1732965990473,0.28525813,3665.1,3664.2,2.72909]
[1732965990474,0.28525813,3665.1,3664.5,2.72887]
[1732965990676,0.66190088,3665.0,3664.5,2.72887]
[1732965990974,0.66190088,3664.9,3664.5,2.72887]
[1732965991276,0.25457726,3664.8,3664.6,0.05140369]
[1732965991457,0.25458027,3664.7,3664.6,0.05140369]
[1732965991829,0.80458027,3664.7,3664.6,0.05140369]
[1732965992672,3.15253046,3665.4,3664.6,0.05140369]
[1732965992673,0.40740716,3665.2,3664.8,2.72865]
[1732965992972,0.66205956,3665.1,3664.8,2.72865]
[1732965993177,0.2546524,3665.0,3664.9,2.77976923]
[1732965994787,0.55,3665.0,3664.9,2.77976923]
[1732965994959,0.80448894,3665.0,3664.9,2.77976923]
[1732965995355,0.55,3665.4,3664.9,2.77976923]
[1732965995557,0.25441201,3665.3,3664.9,2.77976923]
[1732965995761,0.55,3665.1,3664.9,2.77976923]
[1732965996271,0.55,3665.4,3664.9,2.77976923]
[1732965996483,0.25433985,3665.3,3664.9,2.77976923]
[1732965996677,0.25433985,3665.2,3664.9,2.77976923]
[1732965996986,0.55,3665.4,3664.9,2.77976923]
[1732965996987,0.55,3665.0,3664.9,2.77976923]
[1732965997347,0.55,3665.0,3664.9,0.05118923]
[1732965997548,3.13532231,3665.5,3664.8,2.72864]
[1732965997549,0.55,3665.3,3664.8,2.72864]
[1732965997750,0.55,3665.1,3664.8,2.72864]
[1732965998060,0.8042714,3665.0,3664.9,0.05091476]
[1732965998261,0.55,3665.3,3664.9,0.05091476]
[1732965998575,0.25421481,3665.2,3664.9,0.05091476]
[1732965998884,0.55,3665.0,3664.9,0.05091476]
[1732965999251,0.55,3665.3,3664.9,0.05091476]
[1732965999457,0.40685011,3665.4,3664.9,0.05091476]
[1732965999458,0.55,3665.1,3664.9,0.05091476]
[1732965999653,0.25423912,3665.0,3664.8,2.7286]
[1732965999867,0.55,3665.1,3665.0,0.05088777]
[1732966000194,0.80423187,3665.1,3664.9,0.05091476]
[1732966000340,0.55,3665.1,3665.0,0.05088777]
[1732966000546,0.80423833,3665.1,3665.0,0.05088777]
[1732966000790,0.80423833,3665.1,3664.6,2.7288]
[1732966000973,0.55,3665.1,3665.0,0.05088777]
[1732966001186,0.8042384,3665.1,3664.6,2.7288]
[1732966001370,0.95685011,3665.1,3665.0,0.05088777]
[1732966001542,0.25423969,3665.1,3664.3,0.54994319]
[1732966001856,0.25423969,3665.1,3663.4,3.0]
[1732966001857,0.55,3664.5,3662.8,0.1]
[1732966002059,0.55,3664.5,3664.0,2.72925]
[1732966002279,0.55,3664.3,3664.0,2.72925]
[1732966002520,0.55,3664.3,3664.0,4.39565]
[1732966002668,0.55,3664.5,3663.9,2.72932]
[1732966002870,0.55,3664.3,3664.1,2.72913]
[1732966003360,0.55,3664.2,3664.1,2.72913]
[1732966003564,0.40685011,3664.6,3663.9,2.72932]
[1732966003565,0.55,3664.1,3663.9,2.72932]
[1732966004000,0.40685011,3664.5,3663.9,2.72932]
[1732966004001,0.55,3664.4,3663.9,2.72932]
[1732966004202,0.55,3664.2,3663.9,2.72932]
[1732966004410,0.55,3664.0,3663.9,2.72932]
[1732966004766,0.55,3664.0,3663.7,2.72947]
[1732966005315,0.55,3664.3,3663.7,2.72947]
[1732966005470,0.25417837,3664.2,3663.8,2.72938]
[1732966005789,0.55,3664.0,3663.9,2.72933]
[1732966006317,0.55,3664.0,3663.9,2.77901262]
[1732966006784,0.55,3664.0,3663.9,3.32985688]
[1732966007319,2.72885,3664.6,3663.9,3.32985688]
[1732966007320,0.55,3664.3,3663.9,2.77901262]
[1732966007492,0.55,3664.1,3664.0,2.72924]
[1732966007689,0.80413556,3664.1,3664.0,2.77889561]
[1732966008295,0.80413556,3664.1,3664.0,0.04965561]
[1732966009723,0.80413556,3664.1,3663.5,4.39601]
[1732966010026,0.55,3663.9,3663.8,2.7294]
[1732966010232,0.80413556,3663.9,3663.8,2.7294]
[1732966010912,0.80413556,3663.9,3663.7,1.5355]
[1732966011226,0.80413556,3663.8,3663.7,1.5355]
[1732966011379,0.80413556,3663.8,3663.7,4.26498]
[1732966011780,0.80445119,3663.8,3663.7,4.26498]
[1732966012983,0.55,3663.8,3663.7,4.26498]
[1732966013226,0.55,3664.3,3664.0,2.72924]
[1732966013394,0.55,3664.1,3664.0,2.72924]
[1732966013594,0.80443665,3664.1,3664.0,2.72924]
[1732966013795,0.80443665,3664.1,3664.0,4.35194]
[1732966014025,0.40710374,3664.7,3664.2,2.7291]
[1732966014187,0.66157185,3664.6,3664.4,2.72894]
[1732966014500,0.66171444,3664.5,3664.4,2.72894]
[1732966014830,0.40724633,3664.9,3664.7,2.72873]
[1732966014996,0.25457482,3664.8,3664.7,2.72873]
[1732966016586,2.55515639,3665.4,3664.7,1.6227]
[1732966016587,0.40724633,3665.3,3664.7,1.6227]
[1732966016787,0.66195322,3665.2,3664.8,2.72865]
[1732966016986,0.66222214,3665.1,3664.8,2.72865]
[1732966017232,0.55,3664.9,3664.7,4.35142]
[1732966017525,0.80470689,3664.8,3664.5,2.72888]
[1732966017736,0.55,3664.7,3664.5,2.72888]
[1732966017888,2.72843,3665.2,3664.3,2.72903]
[1732966017889,0.55,3664.9,3664.6,2.72879]
[1732966018089,0.25469101,3664.8,3664.6,2.72879]
[1732966018293,0.55,3664.9,3664.4,2.72894]
[1732966018517,0.55,3664.6,3664.4,2.72894]
[1732966018711,0.55,3664.9,3664.4,2.72894]
[1732966018900,0.55,3664.7,3664.5,2.72888]
[1732966019109,0.40751525,3665.2,3664.9,2.72858]
[1732966019323,0.25474404,3665.1,3664.8,2.72865]
[1732966019490,0.25474404,3665.0,3664.8,2.72865]
[1732966019685,0.40759047,3665.3,3664.6,1.6227]
[1732966020033,0.25472997,3665.2,3665.0,2.72849]
[1732966020187,2.72802,3665.7,3664.6,1.6227]
[1732966020188,0.25472997,3665.1,3664.9,2.72858]
[1732966020390,0.55,3665.0,3664.9,2.72858]
[1732966020796,0.55,3665.3,3665.1,2.72838]
[1732966021019,0.55,3665.3,3664.9,2.72855]
[1732966021020,0.80472288,3665.2,3664.9,2.72855]
[1732966021344,0.55,3665.0,3664.9,2.72855]
[1732966021540,0.80472288,3665.0,3664.9,2.72855]
[1732966022262,0.40759047,3665.4,3664.9,2.72855]
[1732966022263,0.55,3665.3,3664.9,2.72855]
[1732966022461,0.25469483,3665.2,3665.1,2.72837]
[1732966022622,0.80469483,3665.2,3665.1,2.72837]
[1732966023555,0.55,3665.1,3664.9,2.72855]
[1732966023854,0.55,3665.3,3665.0,2.72851]
[1732966024167,0.55,3665.1,3665.0,2.72851]
[1732966024453,0.25462586,3665.1,3665.0,2.72851]
[1732966024712,0.55,3665.1,3665.0,2.72851]
[1732966024836,0.80450408,3665.1,3665.0,2.72851]
[1732966025022,1.05910713,3665.1,3664.6,1.6227]
[1732966025365,0.55,3665.0,3664.9,2.72857]
[1732966025724,0.55,3665.0,3664.8,2.72859]
[1732966025927,0.55,3665.0,3664.9,2.72858]
[1732966026929,0.55,3665.3,3664.9,2.72858]
[1732966027124,0.25433544,3665.2,3664.9,2.72858]
[1732966027441,0.40720653,3665.4,3664.9,2.72858]
[1732966027442,0.55,3665.0,3664.9,2.72858]
[1732966027744,0.95702708,3665.4,3664.9,2.72858]
[1732966027948,0.55,3665.2,3664.9,2.72858]
[1732966028155,0.55,3665.0,3664.9,2.72858]
[1732966028489,0.55,3665.3,3664.6,1.6227]
[1732966028617,0.55,3664.9,3664.8,2.72866]
[1732966029062,0.55,3665.2,3664.8,2.72866]
[1732966029265,0.40702708,3665.3,3664.8,2.72866]
[1732966029266,0.55,3665.0,3664.9,2.72855]
[1732966029561,0.55,3665.0,3664.9,4.39872873]
[1732966029765,0.25450826,3665.4,3664.9,5.1114676]
[1732966029965,0.80450826,3665.3,3665.2,2.72835]
[1732966030261,0.80450826,3665.3,3665.2,2.77590367]
[1732966032224,0.55,3665.3,3665.2,2.77590367]
[1732966032424,0.55,3665.6,3665.2,2.77590367]
[1732966032658,0.25438092,3665.5,3665.3,2.72823]
[1732966032858,0.80438092,3665.4,3665.3,2.72823]
[1732966034295,0.80438092,3665.4,3665.3,4.26273]
[1732966034501,0.25430047,3665.4,3665.3,4.26273]
[1732966034779,0.55,3665.4,3665.3,4.26273]
[1732966035083,1.14198385,3665.8,3665.3,4.26273]
[1732966035084,0.55,3665.6,3665.5,2.72814]
[1732966035246,0.80428526,3665.6,3665.5,2.72814]
[1732966036155,0.80428526,3665.6,3665.5,2.7756127]
[1732966036591,0.55,3665.6,3665.5,2.7756127]
[1732966037299,0.55,3665.8,3665.5,2.7756127]
[1732966038254,1.14198385,3665.9,3665.5,2.7756127]
[1732966038456,0.94249865,3665.8,3665.6,2.72804]
[1732966038952,0.94249865,3665.8,3665.7,0.04729217]
[1732966040377,0.55,3665.7,3665.4,2.72816]
[1732966040554,0.55,3665.7,3665.4,3.2243368]
[1732966040892,0.55,3665.8,3665.4,3.2243368]
[1732966043177,0.55,3665.6,3665.4,3.2243368]
[1732966043389,0.95775092,3665.5,3665.4,3.2243368]
[1732966043595,0.55,3665.4,3665.3,2.72828]
[1732966043920,0.55,3665.4,3664.3,0.94374412]
[1732966043921,2.72838,3665.2,3664.1,1.5345]
[1732966044081,0.55,3664.9,3664.3,2.72903]
[1732966044264,0.55,3664.7,3664.6,2.72879]
[1732966044465,0.80484432,3664.7,3664.6,2.72879]
[1732966044707,0.80484432,3664.7,3664.2,2.7291]
[1732966044908,0.55,3664.5,3664.2,2.7291]
[1732966045201,0.25507697,3664.4,3664.2,2.7291]
[1732966045412,0.80507697,3664.3,3664.2,3.15546]
[1732966045701,1.21316853,3664.3,3664.2,3.15546]
[1732966045874,1.21316853,3664.3,3664.0,2.72924]
[1732966046075,0.17060656,3664.7,3664.0,2.72924]
[1732966046076,0.55,3664.1,3664.0,2.72924]
[1732966046280,0.80507697,3664.1,3664.0,2.77535861]
[1732966046727,0.80507697,3664.1,3664.0,0.04611861]
[1732966046866,1.21299506,3664.1,3664.0,0.04611861]
[1732966047061,1.21299506,3664.1,3663.8,4.26386]
[1732966047266,0.55,3663.9,3663.8,4.26386]
[1732966047516,0.80507697,3663.9,3663.8,4.963199]
[1732966048376,0.80507697,3663.9,3663.8,0.699339]
[1732966048567,0.80507697,3663.9,3663.7,2.72946]
[1732966048767,0.80507697,3663.8,3663.7,2.72946]
[1732966049015,0.55,3663.7,3663.6,2.72955]
[1732966049505,0.55,3664.0,3663.6,2.72955]
[1732966049709,0.55,3663.8,3663.6,2.72955]
[1732966049918,0.55,3663.8,3663.6,3.428924]
[1732966050206,0.55,3664.1,3663.6,3.428924]
[1732966050410,0.55,3663.9,3663.6,3.428924]
[1732966050710,2.72908,3664.3,3663.6,3.428924]
[1732966050916,1.21196249,3664.2,3663.7,0.0446357]
[1732966051094,0.25459863,3664.1,3663.7,0.0446357]
[1732966051299,0.25459863,3664.0,3663.7,0.0446357]
[1732966051618,0.55,3663.8,3663.7,0.0446357]
[1732966052108,0.55,3664.1,3663.7,2.7741057]
[1732966052419,0.55,3664.0,3663.9,2.72931]
[1732966052713,0.4072347,3664.5,3664.1,1.583]
[1732966052714,0.55,3664.3,3664.1,1.583]
[1732966052912,0.55,3664.6,3664.2,2.7291]
[1732966053072,0.55,3664.6,3664.2,2.80137177]
[1732966053073,0.55,3664.4,3664.2,2.80137177]
[1732966053408,0.25450916,3664.3,3664.2,2.77408358]
[1732966053565,2.55617524,3664.8,3664.2,2.77408358]
[1732966053566,0.25450916,3664.6,3664.3,2.72898]
[1732966053767,0.25450916,3664.5,3664.3,2.72898]
[1732966053965,2.96340994,3664.9,3664.3,2.72898]
[1732966053966,2.96340994,3664.9,3664.4,0.04492957]
[1732966054293,1.60478886,3664.8,3664.5,0.0448562]
[1732966054474,1.19755416,3664.7,3664.3,2.72898]
[1732966054836,0.8045542,3664.6,3664.4,0.04485031]
[1732966054977,0.8045542,3664.5,3664.4,0.04485031]
[1732966055308,0.8045542,3664.5,3664.3,2.72898]
[1732966055508,0.55,3664.4,3664.3,2.72898]
[1732966056009,0.55,3664.7,3664.3,2.72898]
[1732966056188,0.55,3664.5,3664.1,4.31215]
[1732966056514,0.55,3664.3,3664.2,2.72909]
[1732966056886,0.80439122,3664.6,3664.2,2.72909]
[1732966057216,0.55,3664.4,3664.2,2.72909]
[1732966057385,1.96401071,3664.7,3664.2,2.72909]
[1732966057710,0.55,3664.5,3664.2,2.72909]
[1732966057909,0.25439364,3664.4,3664.2,2.72909]
[1732966058214,0.55,3664.6,3664.2,2.72909]
[1732966058384,0.25439004,3664.5,3664.2,2.72909]
[1732966058606,0.55,3664.6,3664.2,2.72909]
[1732966058607,0.25439004,3664.4,3664.2,2.72909]
[1732966058811,0.55,3664.6,3664.2,2.72909]
[1732966059117,0.55,3664.4,3664.2,2.72909]
[1732966059524,0.55,3664.6,3664.0,2.72923]
[1732966059737,0.55,3664.6,3663.9,1.583]
[1732966059738,0.55,3664.2,3663.8,2.72938]
[1732966059892,0.55,3664.2,3663.6,4.31248]
[1732966060094,0.55,3664.0,3663.7,2.72945]
[1732966060521,0.80441217,3664.2,3663.7,2.72945]
[1732966060732,0.55,3664.0,3663.7,2.72945]
[1732966061046,0.55,3664.0,3663.7,2.72946]
[1732966061210,0.80439265,3664.3,3663.7,2.72946]
[1732966061414,0.55,3664.1,3663.6,2.72955]
[1732966061942,2.72905,3664.3,3663.7,2.72946]
[1732966061943,0.55,3663.9,3663.7,2.72946]
[1732966062118,0.2543943,3664.1,3663.7,2.72946]
[1732966062376,0.55,3664.0,3663.7,2.72946]
[1732966062524,0.55,3664.2,3663.7,2.72946]
[1732966062738,0.55,3664.0,3663.7,2.72946]
[1732966063337,0.55,3664.1,3663.7,2.72941]
[1732966063515,0.55,3663.9,3663.5,2.72962]
[1732966063913,0.55,3664.0,3663.5,2.72962]
[1732966064114,0.55,3664.3,3663.5,0.704239]
[1732966064318,0.55,3664.1,3663.8,2.7294]
[1732966064616,0.55,3664.1,3663.6,2.72949]
[1732966064812,0.80442106,3664.0,3663.9,0.04502722]
[1732966065119,0.55,3663.9,3663.6,2.72949]
[1732966065440,0.55,3664.1,3663.6,2.72949]
[1732966065646,2.72896,3664.4,3663.6,3.433709]
[1732966065647,0.25445603,3664.0,3663.6,3.433709]
[1732966065801,0.55,3663.9,3663.6,3.433709]
[1732966065998,0.55,3663.9,3663.7,0.04508124]
[1732966066416,0.55,3664.2,3663.7,0.04508124]
[1732966066621,0.2545201,3664.1,3663.7,0.04508124]
[1732966066816,0.55,3663.9,3663.7,0.04508124]
[1732966067029,0.55,3664.2,3663.7,0.04508124]
[1732966067225,0.55,3664.0,3663.7,0.04508124]
[1732966067424,0.55,3663.9,3663.8,2.72938]
[1732966067641,0.55,3663.9,3663.8,4.86550431]
[1732966067819,0.80451401,3664.1,3663.8,4.91056601]
[1732966068017,0.95713246,3664.4,3663.8,4.91056601]
[1732966068315,0.55,3664.2,3663.8,4.3574417]
[1732966068642,0.55,3664.0,3663.8,4.3574417]
[1732966068814,0.55,3664.0,3663.9,2.72933]
[1732966069144,0.55,3663.9,3663.8,0.0450617]
[1732966069348,0.55,3663.9,3663.7,2.72947]
[1732966069644,0.55,3664.2,3663.7,2.72947]
[1732966069879,0.55,3664.0,3663.7,2.72947]
[1732966070006,0.25452998,3663.9,3663.6,2.72949]
[1732966070201,0.55,3664.0,3663.6,2.72949]
[1732966070439,0.25462535,3663.9,3663.6,2.72949]
[1732966070750,0.40713246,3664.2,3663.6,2.72949]
[1732966070751,0.55,3664.1,3663.6,2.72949]
[1732966070899,0.55,3663.9,3663.6,2.72949]
[1732966071109,0.55,3663.9,3663.7,2.72943]
[1732966071430,0.80489065,3663.8,3663.7,2.72943]
[1732966071633,0.55,3664.1,3663.7,2.72943]
[1732966071960,0.55,3663.9,3663.8,2.72934]
[1732966072111,0.55,3664.1,3663.9,1.583]
[1732966072458,0.55,3664.2,3664.0,2.72918]
[1732966072663,0.80504195,3664.1,3664.0,2.72918]
[1732966075065,1.21365275,3664.1,3664.0,2.72918]
[1732966075929,1.21405204,3664.1,3664.0,2.72918]
[1732966079260,1.21415372,3664.1,3664.0,2.72918]
[1732966080385,0.80544374,3664.1,3664.0,2.72918]
[1732966080985,0.80544374,3664.1,3664.0,4.87125781]
[1732966081387,0.55,3664.1,3664.0,4.87125781]
[1732966081602,0.80533603,3664.1,3664.0,4.87125781]
[1732966082258,0.25533603,3664.1,3664.0,4.87125781]
[1732966083075,0.55,3664.7,3664.2,1.5528]
[1732966083402,0.55,3664.9,3664.7,2.72868]
[1732966083597,1.31264465,3665.0,3664.7,2.72868]
[1732966083598,0.66377077,3664.8,3664.7,2.72868]
[1732966083812,0.25529645,3664.8,3664.7,4.28148]
[1732966084126,1.58560632,3665.5,3664.7,4.28148]
[1732966084310,2.08653658,3665.6,3665.4,2.72821]
[1732966084475,4.16381997,3665.5,3665.1,2.72838]
[1732966084804,0.66341212,3665.4,3665.2,2.72836]
[1732966084983,0.66341212,3665.3,3665.2,2.72836]
[1732966085178,0.25515851,3665.3,3665.2,2.72836]
[1732966085378,0.80515851,3665.3,3665.2,2.72836]
[1732966085990,0.25515851,3665.3,3665.2,4.28116]
[1732966086720,0.25515851,3665.3,3665.2,2.72836]
[1732966087017,0.25482543,3665.3,3665.2,2.72836]
[1732966087222,0.40773361,3665.7,3665.2,2.72836]
[1732966087378,2.96491699,3665.8,3665.7,2.72799]
[1732966087725,3.02116549,3665.8,3665.7,2.72799]
[1732966087875,1.60596596,3665.8,3665.7,2.72799]
[1732966088312,2.61324106,3665.8,3665.7,2.72799]
[1732966088496,1.74823235,3665.8,3665.7,2.72799]
[1732966091080,0.8047321,3665.8,3665.7,2.72799]
[1732966091625,0.80426388,3665.8,3665.7,2.72799]
[1732966092281,0.55,3665.9,3665.5,2.72812]
[1732966092518,0.55,3665.9,3665.8,2.7279]
[1732966092718,0.80411271,3665.9,3665.8,2.76903792]
[1732966092920,1.74614029,3665.9,3665.8,2.76903792]
[1732966093119,0.80411271,3665.9,3665.8,2.76903792]
[1732966094615,0.80411271,3665.9,3665.8,0.04113792]
[1732966094779,0.80402804,3665.9,3665.8,0.04113792]
[1732966094978,0.80402804,3665.9,3665.8,2.76904792]
[1732966095230,0.80402668,3665.9,3665.8,2.76904792]
[1732966095715,1.31523135,3666.3,3665.9,2.72784]
[1732966095716,0.55,3666.0,3665.9,2.72784]
[1732966095886,0.55,3666.1,3666.0,2.72776]
[1732966096093,0.55,3666.1,3666.0,2.76884396]
[1732966096314,0.80402668,3666.2,3666.1,2.72766]
[1732966096649,0.55,3666.2,3666.1,2.76871698]
[1732966100310,1.49455273,3666.2,3666.1,2.76871698]
[1732966100546,1.49455273,3666.2,3666.1,0.04105698]
[1732966100907,1.49455273,3666.2,3665.6,2.72799]
[1732966101107,1.49455273,3666.0,3665.9,2.72779]
[1732966101315,1.49455273,3666.0,3665.9,2.76890094]
[1732966102472,1.74857941,3666.2,3666.0,2.72773]
[1732966102826,1.74857941,3666.2,3666.1,0.04105698]
[1732966105061,1.49455273,3666.2,3666.1,0.04105698]
[1732966105266,1.74871581,3666.2,3666.1,0.04105698]
[1732966105566,1.74871581,3666.2,3666.1,2.76874698]
[1732966106879,1.74871581,3666.2,3666.1,0.04105698]
[1732966107256,1.74871581,3666.2,3666.0,2.72774]
[1732966107429,1.49455273,3666.2,3666.1,0.04099421]
[1732966107630,1.74900999,3666.2,3666.1,0.04099421]
[1732966107953,0.80445726,3666.2,3666.1,2.76868421]
[1732966109731,0.25445726,3666.2,3666.1,2.76868421]
[1732966110038,0.80445726,3666.2,3666.1,2.76868421]
[1732966111145,0.80445726,3666.2,3666.1,4.28768421]
[1732966111474,1.21111819,3666.2,3666.1,4.28768421]
[1732966111980,0.80445726,3666.2,3666.1,2.76868421]
[1732966112131,1.21210249,3666.2,3666.1,2.76868421]
[1732966114066,0.66210249,3666.2,3666.1,4.26888421]
[1732966114270,0.66210249,3666.2,3666.1,4.55668531]
[1732966114436,0.25445726,3666.2,3666.1,4.55668531]
[1732966115442,0.25445726,3666.2,3666.1,4.26888421]
[1732966117028,0.25518439,3666.2,3666.1,4.26888421]
[1732966119645,0.25518439,3666.2,3666.1,2.76868421]
[1732966120045,0.80518439,3666.2,3666.1,2.76868421]
[1732966122085,0.55,3666.2,3666.1,2.76868421]
[1732966122244,0.80514533,3666.2,3666.1,2.76868421]
[1732966124961,1.21352965,3666.2,3666.1,2.76868421]
[1732966125488,1.21369837,3666.2,3666.1,2.76868421]
[1732966128844,1.21352541,3666.2,3666.1,2.76868421]
[1732966129250,1.21352541,3666.2,3666.1,0.04099421]
[1732966129493,4.71297984,3666.2,3666.1,0.04099421]
[1732966129673,0.55,3666.1,3665.9,2.72784]
[1732966130043,0.55,3665.9,3665.6,2.72805]
[1732966130150,1.6919743,3665.7,3665.6,2.72805]
[1732966130351,2.15770024,3665.7,3665.6,2.72805]
[1732966131056,3.57412957,3665.7,3665.6,2.72805]
[1732966131399,2.15775611,3665.7,3665.6,2.72805]
[1732966131552,0.80520208,3665.7,3665.6,4.773875]
[1732966132275,0.95809101,3666.0,3665.9,2.72784]
[1732966132485,1.49440423,3666.0,3665.9,2.72784]
[1732966132682,2.15757745,3666.0,3665.9,2.72784]
[1732966132994,0.8050619,3666.0,3665.9,2.72784]
[1732966133193,0.8050619,3666.0,3665.9,4.33624]
[1732966134083,0.8050619,3666.0,3665.9,5.0972255]
[1732966134285,0.55,3666.2,3666.1,2.72769]
[1732966134590,0.80511694,3666.2,3666.1,2.72769]
[1732966135093,1.21331938,3666.2,3666.1,2.72769]
[1732966135289,0.80511694,3666.2,3666.1,2.72769]
[1732966135455,1.21332792,3666.2,3666.1,2.72769]
[1732966135652,1.21338223,3666.2,3666.1,2.72769]
[1732966135891,0.80514701,3666.2,3666.1,2.72769]
[1732966139781,1.21345945,3666.2,3666.1,2.72769]
[1732966139989,4.71857136,3666.2,3665.9,2.72779]
[1732966140195,0.55,3666.0,3665.9,2.72779]
[1732966140398,0.80514701,3666.0,3665.9,2.72779]
[1732966141375,0.8051757,3666.0,3665.9,2.72779]
[1732966141703,0.8051757,3666.0,3665.9,2.76592838]
[1732966144387,0.8051757,3666.0,3665.9,4.37432838]
[1732966145884,0.8051757,3666.0,3665.9,2.76592838]
[1732966146124,0.8051757,3666.0,3665.9,0.03813838]
[1732966146125,2.15935041,3666.0,3665.9,0.03813838]
[1732966146311,3.57786059,3666.0,3665.9,0.03813838]
[1732966146494,4.71983489,3666.0,3665.9,0.03813838]
[1732966147227,6.23074737,3666.0,3665.9,0.03813838]
[1732966147382,0.55,3665.9,3665.5,2.72809]
[1732966147583,0.55,3665.6,3665.5,2.72809]
[1732966147797,2.15945614,3665.6,3665.5,2.72809]
[1732966147999,1.75104401,3665.6,3665.5,2.72809]
[1732966148217,1.90418081,3665.6,3665.5,2.72809]
[1732966148488,1.62199122,3665.6,3665.5,2.72809]
[1732966148689,1.21361238,3665.6,3665.5,2.72809]
[1732966149319,0.95837561,3665.6,3665.5,2.72809]